[Event "*** MasterClass Titled Tuesday Blitz"]
[Site "Chess.com"]
[Date "2017.12.05"]
[Round "3"]
[White "QuintilianoR"]
[Black "OparinGrigoriy"]
[Result "0-1"]
[WhiteElo "2516"]
[BlackElo "2722"]
[TimeControl "180+2"]
[EndTime "14:48:26 PST"]
[Termination "OparinGrigoriy won by resignation"]

1. d4 {[%clk 0:03:01.9]} 1... f5 {[%clk 0:03:00.3]} 2. Nf3 {[%clk 0:03:02]} 2...
Nf6 {[%clk 0:03:01.1]} 3. g3 {[%clk 0:03:03.3]} 3... g6 {[%clk 0:03:02.6]} 4.
Bg2 {[%clk 0:03:04.9]} 4... Bg7 {[%clk 0:03:04.3]} 5. O-O {[%clk 0:03:06.5]}
5... O-O {[%clk 0:03:06]} 6. c4 {[%clk 0:03:08.1]} 6... d6 {[%clk 0:03:07.3]} 7.
Nc3 {[%clk 0:03:09.6]} 7... c6 {[%clk 0:03:09]} 8. Rb1 {[%clk 0:03:10]} 8... Ne4
{[%clk 0:03:09.5]} 9. Qb3 {[%clk 0:03:10.3]} 9... Kh8 {[%clk 0:03:09.6]} 10. Rd1
{[%clk 0:03:10.1]} 10... Na6 {[%clk 0:03:09.5]} 11. Be3 {[%clk 0:03:01.2]} 11...
Rb8 {[%clk 0:03:04.3]} 12. a3 {[%clk 0:02:59.3]} 12... Be6 {[%clk 0:03:01.9]}
13. Nxe4 {[%clk 0:02:51]} 13... fxe4 {[%clk 0:03:02.4]} 14. Ng5 {[%clk
0:02:52.6]} 14... Bg8 {[%clk 0:03:03.4]} 15. d5 {[%clk 0:02:50.9]} 15... b5
{[%clk 0:02:54.5]} 16. Ne6 {[%clk 0:02:48.9]} 16... Bxe6 {[%clk 0:02:54.9]} 17.
dxe6 {[%clk 0:02:50.8]} 17... Qa5 {[%clk 0:02:43.7]} 18. Qc2 {[%clk 0:02:18.6]}
18... bxc4 {[%clk 0:02:36]} 19. Qxc4 {[%clk 0:02:16.6]} 19... Nc5 {[%clk
0:01:51.9]} 20. b4 {[%clk 0:02:06.5]} 20... Qa4 {[%clk 0:01:53]} 21. Bd4 {[%clk
0:01:57.7]} 21... Bxd4 {[%clk 0:01:29.5]} 22. Rxd4 {[%clk 0:01:47.2]} 22... Kg8
{[%clk 0:01:08.9]} 23. e3 {[%clk 0:01:03.2]} 23... Qxa3 {[%clk 0:01:03]} 24. Bf1
{[%clk 0:00:31.4]} 24... a5 {[%clk 0:00:51.2]} 0-1

[Event "*** MasterClass Titled Tuesday Blitz"]
[Site "Chess.com"]
[Date "2017.12.05"]
[Round "3"]
[White "JoachimBN"]
[Black "ChessWarrior7197"]
[Result "1-0"]
[WhiteElo "2522"]
[BlackElo "2645"]
[TimeControl "180+2"]
[EndTime "14:48:54 PST"]
[Termination "JoachimBN won by resignation"]

1. c4 {[%clk 0:03:01.9]} 1... Nf6 {[%clk 0:02:59.8]} 2. Nc3 {[%clk 0:03:02.1]}
2... e6 {[%clk 0:02:59.1]} 3. Nf3 {[%clk 0:02:59.2]} 3... d5 {[%clk 0:02:59.3]}
4. e3 {[%clk 0:03:00.7]} 4... Be7 {[%clk 0:02:59.2]} 5. b3 {[%clk 0:03:01.2]}
5... b6 {[%clk 0:02:59.2]} 6. Bb2 {[%clk 0:03:02.5]} 6... Bb7 {[%clk 0:02:59.4]}
7. d4 {[%clk 0:03:02.9]} 7... O-O {[%clk 0:02:59.4]} 8. Bd3 {[%clk 0:03:03.9]}
8... c5 {[%clk 0:02:58.7]} 9. O-O {[%clk 0:03:04.6]} 9... cxd4 {[%clk
0:02:59.8]} 10. exd4 {[%clk 0:03:05.5]} 10... Nc6 {[%clk 0:02:59.6]} 11. Rc1
{[%clk 0:03:05.7]} 11... dxc4 {[%clk 0:02:59.4]} 12. bxc4 {[%clk 0:03:04.6]}
12... Rc8 {[%clk 0:03:00.2]} 13. Re1 {[%clk 0:02:23.8]} 13... Na5 {[%clk
0:02:56.7]} 14. Ne5 {[%clk 0:02:24.6]} 14... Ba6 {[%clk 0:02:48.5]} 15. Nb5
{[%clk 0:02:21.4]} 15... Bxb5 {[%clk 0:02:36.6]} 16. cxb5 {[%clk 0:02:23.3]}
16... Qd5 {[%clk 0:02:38.1]} 17. Qa4 {[%clk 0:02:19.9]} 17... Bd6 {[%clk
0:02:29.9]} 18. Nc6 {[%clk 0:02:00.6]} 18... Nxc6 {[%clk 0:02:25.3]} 19. bxc6
{[%clk 0:02:02.5]} 19... Bb8 {[%clk 0:02:17.3]} 20. g3 {[%clk 0:01:52.3]} 20...
Rfd8 {[%clk 0:02:01.5]} 21. Ba6 {[%clk 0:01:50.3]} 21... Rc7 {[%clk 0:02:01.4]}
22. Re5 {[%clk 0:01:36.3]} 22... Qd6 {[%clk 0:01:54.9]} 23. h3 {[%clk
0:01:37.4]} 23... h5 {[%clk 0:01:38.8]} 24. Kg2 {[%clk 0:01:29.3]} 24... h4
{[%clk 0:01:37.2]} 25. g4 {[%clk 0:01:26.7]} 25... Nd5 {[%clk 0:01:30.7]} 26.
Ba3 {[%clk 0:01:14.6]} 26... Nf4+ {[%clk 0:01:31.3]} 27. Kf3 {[%clk 0:01:12.1]}
27... Qxd4 {[%clk 0:01:31.9]} 28. Qxd4 {[%clk 0:01:13.5]} 28... Rxd4 {[%clk
0:01:33.8]} 29. Re4 {[%clk 0:01:14.3]} 29... Rxe4 {[%clk 0:01:19]} 30. Kxe4
{[%clk 0:01:16.2]} 30... Nxh3 {[%clk 0:01:17.8]} 31. Bd6 {[%clk 0:01:17.1]}
31... Nxf2+ {[%clk 0:01:10.6]} 32. Kf3 {[%clk 0:01:17.6]} 32... Nd3 {[%clk
0:01:09.8]} 33. Bxd3 {[%clk 0:01:12.5]} 33... Rc8 {[%clk 0:00:49.6]} 34. Bxb8
{[%clk 0:01:13.1]} 34... Rd8 {[%clk 0:00:50.1]} 35. c7 {[%clk 0:01:12.6]} 1-0

[Event "*** MasterClass Titled Tuesday Blitz"]
[Site "Chess.com"]
[Date "2017.12.05"]
[Round "3"]
[White "sorito"]
[Black "kleinebeer98"]
[Result "0-1"]
[WhiteElo "2373"]
[BlackElo "2484"]
[TimeControl "180+2"]
[EndTime "14:48:55 PST"]
[Termination "kleinebeer98 won by resignation"]

1. d4 {[%clk 0:03:01.9]} 1... Nf6 {[%clk 0:02:59.4]} 2. Nf3 {[%clk 0:03:02.2]}
2... e6 {[%clk 0:03:00]} 3. Bf4 {[%clk 0:03:03.6]} 3... c5 {[%clk 0:02:57.5]} 4.
e3 {[%clk 0:03:04.1]} 4... Nc6 {[%clk 0:02:56.1]} 5. c3 {[%clk 0:03:03.6]} 5...
Be7 {[%clk 0:02:54.1]} 6. Nbd2 {[%clk 0:03:04.6]} 6... O-O {[%clk 0:02:50.5]} 7.
Bd3 {[%clk 0:03:05.7]} 7... b6 {[%clk 0:02:50]} 8. O-O {[%clk 0:03:04]} 8... Bb7
{[%clk 0:02:49.4]} 9. a3 {[%clk 0:03:05.4]} 9... h6 {[%clk 0:02:48.1]} 10. h3
{[%clk 0:03:04.1]} 10... d6 {[%clk 0:02:45.5]} 11. b4 {[%clk 0:03:04.4]} 11...
Rc8 {[%clk 0:02:39.7]} 12. Qb1 {[%clk 0:03:03.9]} 12... Nd5 {[%clk 0:02:26.7]}
13. Qb2 {[%clk 0:02:51.6]} 13... Nxf4 {[%clk 0:02:24.3]} 14. exf4 {[%clk
0:02:52.4]} 14... Bf6 {[%clk 0:02:19.5]} 15. Ne4 {[%clk 0:02:51]} 15... cxd4
{[%clk 0:02:14.2]} 16. cxd4 {[%clk 0:02:48.6]} 16... g6 {[%clk 0:02:10.3]} 17.
Nxf6+ {[%clk 0:02:44.5]} 17... Qxf6 {[%clk 0:02:12.2]} 18. g3 {[%clk 0:02:34.3]}
18... Ne7 {[%clk 0:02:04.8]} 19. Qe2 {[%clk 0:02:21.7]} 19... Bxf3 {[%clk
0:01:50.2]} 20. Qxf3 {[%clk 0:02:22.3]} 20... Qxd4 {[%clk 0:01:51.8]} 21. Rfd1
{[%clk 0:02:23.8]} 21... Rc3 {[%clk 0:01:46.5]} 22. Kg2 {[%clk 0:02:14.2]} 22...
Qf6 {[%clk 0:01:35.9]} 23. Ra2 {[%clk 0:02:10]} 23... d5 {[%clk 0:01:28.9]} 24.
Qe2 {[%clk 0:02:06.7]} 24... Rfc8 {[%clk 0:01:28.3]} 25. h4 {[%clk 0:02:00.2]}
25... h5 {[%clk 0:01:28.4]} 26. a4 {[%clk 0:01:53.8]} 26... Nc6 {[%clk
0:01:22.9]} 27. Rb2 {[%clk 0:01:43.1]} 27... Nd4 {[%clk 0:01:14.5]} 28. Qe5
{[%clk 0:01:43.7]} 28... Qxe5 {[%clk 0:01:12]} 29. fxe5 {[%clk 0:01:45]} 29...
Nc6 {[%clk 0:01:05.3]} 30. a5 {[%clk 0:01:36.8]} 30... Nxe5 {[%clk 0:01:04.8]}
31. Bf1 {[%clk 0:01:12]} 31... Rc2 {[%clk 0:00:57.2]} 32. Rxc2 {[%clk
0:01:09.2]} 32... Rxc2 {[%clk 0:00:59.1]} 33. axb6 {[%clk 0:01:10.4]} 33... axb6
{[%clk 0:01:01]} 34. Ra1 {[%clk 0:01:10.2]} 34... Ng4 {[%clk 0:01:01.3]} 35. Ra6
{[%clk 0:01:08.9]} 35... Rxf2+ {[%clk 0:00:58.6]} 36. Kg1 {[%clk 0:01:10.1]}
36... Rf3 {[%clk 0:00:58.5]} 37. Kg2 {[%clk 0:01:07.4]} 37... Rb3 {[%clk
0:00:54.6]} 38. Rxb6 {[%clk 0:01:06]} 38... Ne3+ {[%clk 0:00:51.1]} 39. Kf2
{[%clk 0:01:07.1]} 39... Nxf1 {[%clk 0:00:52.5]} 40. Kxf1 {[%clk 0:01:08.2]}
40... Rxg3 {[%clk 0:00:54.1]} 0-1

[Event "*** MasterClass Titled Tuesday Blitz"]
[Site "Chess.com"]
[Date "2017.12.05"]
[Round "3"]
[White "jjosu"]
[Black "Diwi89"]
[Result "1-0"]
[WhiteElo "2525"]
[BlackElo "2719"]
[TimeControl "180+2"]
[EndTime "14:49:00 PST"]
[Termination "jjosu won by resignation"]

1. e4 {[%clk 0:03:01.9]} 1... c5 {[%clk 0:03:00.2]} 2. Nf3 {[%clk 0:03:03.1]}
2... Nc6 {[%clk 0:03:00.7]} 3. d4 {[%clk 0:03:04.5]} 3... cxd4 {[%clk
0:03:01.7]} 4. Nxd4 {[%clk 0:03:06.4]} 4... Nf6 {[%clk 0:03:02.7]} 5. Nc3 {[%clk
0:03:07.6]} 5... e5 {[%clk 0:03:04.2]} 6. Ndb5 {[%clk 0:03:08.8]} 6... d6 {[%clk
0:03:04.3]} 7. Bg5 {[%clk 0:03:10]} 7... a6 {[%clk 0:03:05.5]} 8. Na3 {[%clk
0:03:11.1]} 8... b5 {[%clk 0:03:06.8]} 9. Bxf6 {[%clk 0:03:11]} 9... gxf6 {[%clk
0:03:07.3]} 10. Nd5 {[%clk 0:03:12.5]} 10... f5 {[%clk 0:03:07.3]} 11. c3 {[%clk
0:03:11.9]} 11... Bg7 {[%clk 0:03:05.9]} 12. Nxb5 {[%clk 0:03:10.4]} 12... axb5
{[%clk 0:03:04.3]} 13. Bxb5 {[%clk 0:03:12.3]} 13... Bd7 {[%clk 0:03:02.4]} 14.
exf5 {[%clk 0:03:12.7]} 14... O-O {[%clk 0:03:02.7]} 15. O-O {[%clk 0:03:13]}
15... e4 {[%clk 0:03:03.8]} 16. Re1 {[%clk 0:03:02.1]} 16... Re8 {[%clk
0:03:02]} 17. Qh5 {[%clk 0:02:58.9]} 17... Re5 {[%clk 0:02:59]} 18. Rad1 {[%clk
0:02:59.4]} 18... Ne7 {[%clk 0:02:59.3]} 19. Bxd7 {[%clk 0:02:43.1]} 19... Qxd7
{[%clk 0:02:59.2]} 20. Nb6 {[%clk 0:02:42.3]} 20... Qc6 {[%clk 0:02:33.2]} 21.
Nxa8 {[%clk 0:02:42.8]} 21... Nxf5 {[%clk 0:02:34.4]} 22. Qh3 {[%clk 0:02:11.6]}
22... Qxa8 {[%clk 0:02:34.1]} 23. g4 {[%clk 0:02:13]} 23... Ne7 {[%clk 0:02:16]}
24. Rxd6 {[%clk 0:02:14]} 24... Ng6 {[%clk 0:02:17.2]} 25. Red1 {[%clk 0:02:14]}
25... Qxa2 {[%clk 0:02:15]} 26. R6d2 {[%clk 0:02:07]} 26... h6 {[%clk 0:02:13]}
27. Qe3 {[%clk 0:02:07.5]} 27... Qe6 {[%clk 0:02:12]} 28. h3 {[%clk 0:02:08.5]}
28... Qf6 {[%clk 0:02:07]} 29. Rd6 {[%clk 0:02:09.4]} 29... Qh4 {[%clk 0:02:08]}
30. b4 {[%clk 0:02:09.4]} 30... h5 {[%clk 0:02:07.1]} 31. Qg3 {[%clk 0:02:04.4]}
31... Qg5 {[%clk 0:02:08.2]} 32. c4 {[%clk 0:02:02.5]} 32... Nf4 {[%clk
0:02:06.7]} 33. Kf1 {[%clk 0:02:03.2]} 33... Ne6 {[%clk 0:02:01.4]} 34. R6d5
{[%clk 0:02:01.1]} 34... e3 {[%clk 0:02:01.7]} 35. Rxe5 {[%clk 0:01:59.6]} 35...
Bxe5 {[%clk 0:02:02.5]} 36. Qxe3 {[%clk 0:02:01.1]} 36... Bf4 {[%clk 0:02:03.9]}
37. Qf3 {[%clk 0:02:02.4]} 37... h4 {[%clk 0:02:02.1]} 38. c5 {[%clk 0:02:03.4]}
38... Qe5 {[%clk 0:02:03.3]} 39. Kg2 {[%clk 0:02:03]} 39... Bg5 {[%clk
0:02:01.8]} 40. Kh1 {[%clk 0:02:03.5]} 40... Nd4 {[%clk 0:01:58.5]} 41. Qg2
{[%clk 0:01:57]} 41... Bf6 {[%clk 0:01:50.5]} 42. Rf1 {[%clk 0:01:48.8]} 42...
Ne6 {[%clk 0:01:49.3]} 43. Qf3 {[%clk 0:01:48.2]} 43... Nd4 {[%clk 0:01:47.8]}
44. Qe3 {[%clk 0:01:49.6]} 44... Qd5+ {[%clk 0:01:48.4]} 45. f3 {[%clk
0:01:51.2]} 45... Ne6 {[%clk 0:01:43.5]} 46. Qe4 {[%clk 0:01:48]} 46... Qd2
{[%clk 0:01:44.2]} 47. c6 {[%clk 0:01:47.3]} 47... Bd8 {[%clk 0:01:44.4]} 48. f4
{[%clk 0:01:36.4]} 48... Bc7 {[%clk 0:01:45.6]} 49. Qg2 {[%clk 0:01:35.1]} 49...
Qxb4 {[%clk 0:01:46.2]} 50. f5 {[%clk 0:01:36.6]} 50... Ng5 {[%clk 0:01:46]} 51.
Qf2 {[%clk 0:01:31.3]} 51... Ne4 {[%clk 0:01:43.2]} 52. Qe1 {[%clk 0:01:24.5]}
52... Ng3+ {[%clk 0:01:42.9]} 53. Kg2 {[%clk 0:01:25.9]} 53... Nxf1 {[%clk
0:01:41.2]} 54. Qxb4 {[%clk 0:01:26]} 54... Ne3+ {[%clk 0:01:41.5]} 55. Kf3
{[%clk 0:01:27.3]} 55... Nd5 {[%clk 0:01:42.9]} 56. Qd4 {[%clk 0:01:27.6]} 56...
Ne7 {[%clk 0:01:43]} 57. Qd7 {[%clk 0:01:28.6]} 1-0

[Event "*** MasterClass Titled Tuesday Blitz"]
[Site "Chess.com"]
[Date "2017.12.05"]
[Round "3"]
[White "Quiet_Desperation"]
[Black "Rodalquilar"]
[Result "1-0"]
[WhiteElo "2350"]
[BlackElo "2491"]
[TimeControl "180+2"]
[EndTime "14:49:00 PST"]
[Termination "Quiet_Desperation won by checkmate"]

1. e4 {[%clk 0:03:01.9]} 1... Nf6 {[%clk 0:03:01.2]} 2. e5 {[%clk 0:03:01.7]}
2... Nd5 {[%clk 0:03:02.7]} 3. Nc3 {[%clk 0:03:01.7]} 3... Nxc3 {[%clk
0:03:03.7]} 4. bxc3 {[%clk 0:03:02.2]} 4... d5 {[%clk 0:03:04.9]} 5. d4 {[%clk
0:03:03.3]} 5... c5 {[%clk 0:03:03.1]} 6. Nf3 {[%clk 0:03:04.4]} 6... Bg4 {[%clk
0:02:58.8]} 7. h3 {[%clk 0:03:02.4]} 7... Bxf3 {[%clk 0:02:54.6]} 8. Qxf3 {[%clk
0:03:02.9]} 8... e6 {[%clk 0:02:56.5]} 9. Bb5+ {[%clk 0:03:01.4]} 9... Nc6
{[%clk 0:02:56.2]} 10. O-O {[%clk 0:03:00.7]} 10... Be7 {[%clk 0:02:57.4]} 11.
Qg3 {[%clk 0:03:01.5]} 11... g6 {[%clk 0:02:52.7]} 12. Bh6 {[%clk 0:03:00]}
12... Qb6 {[%clk 0:02:45.4]} 13. Rab1 {[%clk 0:02:57.8]} 13... cxd4 {[%clk
0:02:45.1]} 14. cxd4 {[%clk 0:02:55.5]} 14... Qxd4 {[%clk 0:02:37.8]} 15. Bxc6+
{[%clk 0:02:56.1]} 15... bxc6 {[%clk 0:02:39.5]} 16. Rb7 {[%clk 0:02:56.8]}
16... Qh4 {[%clk 0:02:37.5]} 17. Qe3 {[%clk 0:02:32]} 17... d4 {[%clk
0:01:52.2]} 18. Qd2 {[%clk 0:02:31.1]} 18... a5 {[%clk 0:01:52.1]} 19. Rfb1
{[%clk 0:02:14.8]} 19... Rd8 {[%clk 0:01:09.4]} 20. g3 {[%clk 0:01:54.3]} 20...
Qe4 {[%clk 0:00:56.4]} 21. Bg7 {[%clk 0:01:51.5]} 21... d3 {[%clk 0:00:30.6]}
22. Qxa5 {[%clk 0:01:06.8]} 22... Qd5 {[%clk 0:00:15.2]} 23. Qxd5 {[%clk
0:00:54.4]} 23... Rxd5 {[%clk 0:00:17.1]} 24. cxd3 {[%clk 0:00:53.6]} 24... Rg8
{[%clk 0:00:15.4]} 25. Rb8+ {[%clk 0:00:54.1]} 25... Bd8 {[%clk 0:00:13.5]} 26.
Bf6 {[%clk 0:00:54.5]} 26... Rf8 {[%clk 0:00:04.4]} 27. R1b7 {[%clk 0:00:52.8]}
27... Rd7 {[%clk 0:00:03.6]} 28. Rxd8+ {[%clk 0:00:53.1]} 28... Rxd8 {[%clk
0:00:04]} 29. Re7# {[%clk 0:00:54.8]} 1-0

[Event "*** MasterClass Titled Tuesday Blitz"]
[Site "Chess.com"]
[Date "2017.12.05"]
[Round "3"]
[White "michaelk123"]
[Black "Zkid"]
[Result "0-1"]
[WhiteElo "2290"]
[BlackElo "2536"]
[TimeControl "180+2"]
[EndTime "14:49:04 PST"]
[Termination "Zkid won by resignation"]

1. e4 {[%clk 0:03:01.9]} 1... c5 {[%clk 0:03:00]} 2. Nf3 {[%clk 0:03:01.1]} 2...
d6 {[%clk 0:03:00.7]} 3. d4 {[%clk 0:02:58.6]} 3... cxd4 {[%clk 0:03:01.7]} 4.
Qxd4 {[%clk 0:02:57.9]} 4... Nc6 {[%clk 0:03:02.2]} 5. Bb5 {[%clk 0:02:58.2]}
5... Bd7 {[%clk 0:03:03.3]} 6. Qd3 {[%clk 0:02:58.5]} 6... g6 {[%clk 0:03:03.2]}
7. c4 {[%clk 0:02:55.5]} 7... Bg7 {[%clk 0:03:04.1]} 8. Nc3 {[%clk 0:02:49.6]}
8... Nf6 {[%clk 0:03:03.7]} 9. h3 {[%clk 0:02:50.1]} 9... a6 {[%clk 0:03:03.2]}
10. Bxc6 {[%clk 0:02:49.9]} 10... Bxc6 {[%clk 0:03:01.3]} 11. O-O {[%clk
0:02:50.4]} 11... Nd7 {[%clk 0:03:02.2]} 12. Be3 {[%clk 0:02:43.5]} 12... O-O
{[%clk 0:03:02]} 13. Bd4 {[%clk 0:02:19]} 13... Ne5 {[%clk 0:02:53.9]} 14. Bxe5
{[%clk 0:02:19.4]} 14... dxe5 {[%clk 0:02:53.6]} 15. Qe3 {[%clk 0:02:20.3]}
15... e6 {[%clk 0:02:52.3]} 16. Rfd1 {[%clk 0:02:17.3]} 16... Qe7 {[%clk
0:02:49.7]} 17. Rd2 {[%clk 0:02:00.5]} 17... Rfd8 {[%clk 0:02:49.1]} 18. Rad1
{[%clk 0:02:00.6]} 18... Bf6 {[%clk 0:02:46.2]} 19. Qb6 {[%clk 0:01:51.8]} 19...
Rxd2 {[%clk 0:02:39.9]} 20. Rxd2 {[%clk 0:01:52]} 20... Kf8 {[%clk 0:02:37.2]}
21. b4 {[%clk 0:01:47]} 21... Rc8 {[%clk 0:02:32.9]} 22. c5 {[%clk 0:01:07.5]}
22... Qc7 {[%clk 0:02:08.5]} 23. Qxc7 {[%clk 0:01:04.8]} 23... Rxc7 {[%clk
0:02:10.4]} 24. h4 {[%clk 0:00:56.8]} 24... h5 {[%clk 0:02:06.3]} 25. g3 {[%clk
0:00:57.4]} 25... Ke7 {[%clk 0:02:03.5]} 26. a4 {[%clk 0:00:56.9]} 26... Be8
{[%clk 0:02:00.5]} 27. Rd3 {[%clk 0:00:52.5]} 27... a5 {[%clk 0:01:57.1]} 28.
Nb5 {[%clk 0:00:51.7]} 28... Bxb5 {[%clk 0:01:57.1]} 29. axb5 {[%clk 0:00:51.9]}
29... axb4 {[%clk 0:01:58.7]} 30. Rb3 {[%clk 0:00:40.6]} 30... Rxc5 {[%clk
0:01:58.7]} 31. Rxb4 {[%clk 0:00:41.6]} 31... Kd6 {[%clk 0:01:59.9]} 32. Kg2
{[%clk 0:00:34.4]} 32... Bd8 {[%clk 0:02:00]} 33. Nd2 {[%clk 0:00:32.5]} 33...
Rc2 {[%clk 0:01:56.8]} 34. Nf3 {[%clk 0:00:06.9]} 34... Bb6 {[%clk 0:01:57.1]}
35. Ng5 {[%clk 0:00:07.6]} 35... Rxf2+ {[%clk 0:01:53.8]} 36. Kh3 {[%clk
0:00:08.6]} 36... f6 {[%clk 0:01:53.2]} 37. Nf7+ {[%clk 0:00:08.7]} 37... Ke7
{[%clk 0:01:54.1]} 38. Nh6 {[%clk 0:00:09.1]} 38... Be3 {[%clk 0:01:51]} 39.
Ng8+ {[%clk 0:00:08.7]} 39... Kf7 {[%clk 0:01:52.4]} 40. Rb3 {[%clk 0:00:08.8]}
40... Re2 {[%clk 0:01:49.7]} 41. Nxf6 {[%clk 0:00:06.3]} 41... Kxf6 {[%clk
0:01:50.2]} 42. Rc3 {[%clk 0:00:07.6]} 42... Bg1 {[%clk 0:01:49.2]} 43. g4
{[%clk 0:00:06]} 43... Re3+ {[%clk 0:01:49.4]} 44. Rxe3 {[%clk 0:00:05.8]} 44...
Bxe3 {[%clk 0:01:51.3]} 45. gxh5 {[%clk 0:00:04.4]} 45... gxh5 {[%clk
0:01:53.2]} 0-1

[Event "*** MasterClass Titled Tuesday Blitz"]
[Site "Chess.com"]
[Date "2017.12.05"]
[Round "3"]
[White "Jumbo"]
[Black "dawtonlms"]
[Result "1-0"]
[WhiteElo "2448"]
[BlackElo "2240"]
[TimeControl "180+2"]
[EndTime "14:49:35 PST"]
[Termination "Jumbo won on time"]

1. Nf3 {[%clk 0:03:01.9]} 1... Nf6 {[%clk 0:02:55.1]} 2. g3 {[%clk 0:03:03.4]}
2... e6 {[%clk 0:02:54.4]} 3. Bg2 {[%clk 0:03:04.9]} 3... d5 {[%clk 0:02:56]} 4.
O-O {[%clk 0:03:06.5]} 4... Be7 {[%clk 0:02:57.5]} 5. d3 {[%clk 0:03:08]} 5...
O-O {[%clk 0:02:58.9]} 6. Nbd2 {[%clk 0:03:09.6]} 6... c5 {[%clk 0:02:59.9]} 7.
e4 {[%clk 0:03:10.8]} 7... b5 {[%clk 0:03:00.2]} 8. Re1 {[%clk 0:03:11.4]} 8...
a5 {[%clk 0:03:01.2]} 9. e5 {[%clk 0:03:12.7]} 9... Nfd7 {[%clk 0:03:02]} 10.
Nf1 {[%clk 0:03:14.3]} 10... a4 {[%clk 0:03:03]} 11. a3 {[%clk 0:03:12.8]} 11...
Nc6 {[%clk 0:03:01.1]} 12. h4 {[%clk 0:03:13]} 12... Ba6 {[%clk 0:03:01.2]} 13.
N1h2 {[%clk 0:03:14]} 13... b4 {[%clk 0:03:01.1]} 14. Ng4 {[%clk 0:03:12.8]}
14... bxa3 {[%clk 0:02:54]} 15. bxa3 {[%clk 0:03:13.8]} 15... Nd4 {[%clk
0:02:52.2]} 16. Nxd4 {[%clk 0:03:06.8]} 16... cxd4 {[%clk 0:02:54.1]} 17. h5
{[%clk 0:03:07.8]} 17... Re8 {[%clk 0:02:53]} 18. h6 {[%clk 0:03:08.8]} 18... g6
{[%clk 0:02:53.7]} 19. Qf3 {[%clk 0:02:53.3]} 19... Qc7 {[%clk 0:02:50.1]} 20.
Re2 {[%clk 0:02:53.3]} 20... Rab8 {[%clk 0:02:46.5]} 21. Qf4 {[%clk 0:02:38]}
21... Qc3 {[%clk 0:02:37.4]} 22. Ra2 {[%clk 0:02:39.2]} 22... Rb1 {[%clk
0:02:37.2]} 23. Kh2 {[%clk 0:02:35.9]} 23... Reb8 {[%clk 0:02:17.2]} 24. Bd2
{[%clk 0:02:12.5]} 24... Qc6 {[%clk 0:02:11.1]} 25. Qxd4 {[%clk 0:02:12.5]}
25... Bc5 {[%clk 0:01:57.3]} 26. Qf4 {[%clk 0:02:12.8]} 26... Qb5 {[%clk
0:01:51.9]} 27. c4 {[%clk 0:02:03.6]} 27... dxc4 {[%clk 0:01:46.5]} 28. d4
{[%clk 0:02:04.9]} 28... Be7 {[%clk 0:01:38.1]} 29. d5 {[%clk 0:02:05]} 29...
Nf8 {[%clk 0:01:36.1]} 30. Nf6+ {[%clk 0:02:01.7]} 30... Kh8 {[%clk 0:01:32]}
31. d6 {[%clk 0:02:02.9]} 31... Bd8 {[%clk 0:01:23]} 32. Bb4 {[%clk 0:02:02.7]}
32... Bb7 {[%clk 0:00:56.6]} 33. f3 {[%clk 0:01:58.5]} 33... Bc6 {[%clk
0:00:50]} 34. d7 {[%clk 0:01:55.8]} 34... Rxb4 {[%clk 0:00:46.2]} 35. axb4
{[%clk 0:01:56.1]} 35... Qxb4 {[%clk 0:00:46.3]} 36. Rab2 {[%clk 0:01:41.4]}
36... Qxb2 {[%clk 0:00:31.2]} 37. Rxb2 {[%clk 0:01:42.9]} 37... Rxb2 {[%clk
0:00:32]} 38. Ne8 {[%clk 0:01:44.5]} 38... Kg8 {[%clk 0:00:26.4]} 39. Nd6 {[%clk
0:01:45.3]} 39... f5 {[%clk 0:00:21.3]} 40. exf6 {[%clk 0:01:45.9]} 40... Nxd7
{[%clk 0:00:16]} 41. f7+ {[%clk 0:01:47.4]} 41... Kf8 {[%clk 0:00:17.1]} 42. Qd4
{[%clk 0:01:48.3]} 42... Bf6 {[%clk 0:00:17]} 43. Qxc4 {[%clk 0:01:46.2]} 43...
Rxg2+ {[%clk 0:00:08.5]} 44. Kxg2 {[%clk 0:01:44.9]} 44... Bxf3+ {[%clk
0:00:10.1]} 45. Kh2 {[%clk 0:01:46.2]} 45... Ke7 {[%clk 0:00:02.5]} 46. Qc7
{[%clk 0:01:43.8]} 1-0

[Event "*** MasterClass Titled Tuesday Blitz"]
[Site "Chess.com"]
[Date "2017.12.05"]
[Round "3"]
[White "Rhinos1"]
[Black "FearNoEvil12"]
[Result "0-1"]
[WhiteElo "2035"]
[BlackElo "2049"]
[TimeControl "180+2"]
[EndTime "14:49:37 PST"]
[Termination "FearNoEvil12 won by checkmate"]

1. e4 {[%clk 0:03:01.9]} 1... a6 {[%clk 0:03:00.2]} 2. Bc4 {[%clk 0:03:02]} 2...
e6 {[%clk 0:02:59.1]} 3. Nf3 {[%clk 0:03:02]} 3... b5 {[%clk 0:03:00.5]} 4. Bb3
{[%clk 0:03:02]} 4... Bb7 {[%clk 0:03:02]} 5. O-O {[%clk 0:03:03.3]} 5... Bxe4
{[%clk 0:03:00.4]} 6. d3 {[%clk 0:03:03.9]} 6... Bb7 {[%clk 0:03:01.7]} 7. Nc3
{[%clk 0:02:59.9]} 7... Nf6 {[%clk 0:03:02.6]} 8. Bg5 {[%clk 0:02:57.5]} 8... d6
{[%clk 0:03:01.9]} 9. a4 {[%clk 0:02:56.5]} 9... b4 {[%clk 0:03:01.1]} 10. Ne4
{[%clk 0:02:57.1]} 10... Be7 {[%clk 0:03:02]} 11. Re1 {[%clk 0:02:52]} 11...
Nbd7 {[%clk 0:03:01.5]} 12. h3 {[%clk 0:02:50.9]} 12... h6 {[%clk 0:03:01.6]}
13. Bd2 {[%clk 0:02:46.7]} 13... O-O {[%clk 0:02:58.9]} 14. Nxf6+ {[%clk
0:02:43.5]} 14... Bxf6 {[%clk 0:02:57.7]} 15. Bxb4 {[%clk 0:02:44.9]} 15... Bxb2
{[%clk 0:02:56.7]} 16. Rb1 {[%clk 0:02:46.2]} 16... Bf6 {[%clk 0:02:56.2]} 17.
Bd2 {[%clk 0:02:42.6]} 17... Rb8 {[%clk 0:02:57.6]} 18. Be3 {[%clk 0:02:30.3]}
18... c5 {[%clk 0:02:54.3]} 19. Bf4 {[%clk 0:02:26.3]} 19... e5 {[%clk
0:02:46.9]} 20. Bd2 {[%clk 0:02:21.1]} 20... Bg5 {[%clk 0:02:45.5]} 21. Nxg5
{[%clk 0:02:19.5]} 21... hxg5 {[%clk 0:02:46.9]} 22. Qg4 {[%clk 0:02:17.7]}
22... d5 {[%clk 0:02:40.3]} 23. Bxg5 {[%clk 0:02:15.1]} 23... f6 {[%clk
0:02:40.8]} 24. Qe6+ {[%clk 0:01:55.3]} 24... Rf7 {[%clk 0:02:38.7]} 25. Bd2
{[%clk 0:01:55.4]} 25... Nf8 {[%clk 0:02:38.2]} 26. Qg4 {[%clk 0:01:51]} 26...
Qd7 {[%clk 0:02:37.3]} 27. Qh5 {[%clk 0:01:43.6]} 27... Bc6 {[%clk 0:02:30.2]}
28. Bxd5 {[%clk 0:01:28.9]} 28... Qxd5 {[%clk 0:02:21.3]} 29. Qg4 {[%clk
0:01:21.5]} 29... Rxb1 {[%clk 0:02:17.8]} 30. Rxb1 {[%clk 0:01:23.4]} 30... f5
{[%clk 0:02:16.1]} 31. Qg5 {[%clk 0:01:21.1]} 31... Ne6 {[%clk 0:02:14.8]} 32.
Qg6 {[%clk 0:01:20.4]} 32... Rf6 {[%clk 0:02:14]} 33. Rb8+ {[%clk 0:01:11.3]}
33... Nf8 {[%clk 0:02:12.6]} 34. Qg5 {[%clk 0:01:07.2]} 34... Kf7 {[%clk
0:02:11]} 35. f3 {[%clk 0:00:50.9]} 35... Qd6 {[%clk 0:02:09.6]} 36. Qh5+ {[%clk
0:00:44.2]} 36... Kg8 {[%clk 0:02:04]} 37. Rc8 {[%clk 0:00:34.4]} 37... Bd7
{[%clk 0:01:59.3]} 38. Ra8 {[%clk 0:00:33.1]} 38... Bxa4 {[%clk 0:01:51.3]} 39.
Bg5 {[%clk 0:00:33.5]} 39... Rg6 {[%clk 0:01:47.5]} 40. Ra7 {[%clk 0:00:31.9]}
40... Bxc2 {[%clk 0:01:39.9]} 41. Be7 {[%clk 0:00:31.7]} 41... Qd4+ {[%clk
0:01:24.9]} 42. Kh1 {[%clk 0:00:28.2]} 42... Qf2 {[%clk 0:01:25.2]} 43. g4
{[%clk 0:00:26.2]} 43... Qxf3+ {[%clk 0:01:22.3]} 44. Kh2 {[%clk 0:00:26.3]}
44... Qf2+ {[%clk 0:01:21.5]} 45. Kh1 {[%clk 0:00:26.8]} 45... Bxd3 {[%clk
0:01:20.9]} 46. Bxf8 {[%clk 0:00:14.3]} 46... Be4# {[%clk 0:01:20.8]} 0-1